Workbook

Sheet 汇总
A1: 凤泉区2024年公开招聘事业单位工作人员笔试成绩
A2: 序号 | B2: 准考证号 | C2: 姓名 | D2: 报考岗位 | E2: 职业能力测试 | F2: 公共基础知识 | G2: 加分 | H2: 总成绩
A3: =COUNTIF(D$2:D3,D3) -> 1 | B3: 12410010304 | C3: 王泽华 | D3: 241001管理岗（综合类） | E3: 78.59 | F3: 80.24 | H3: =SUM(E3:G3)/2 -> 79.42
A4: =COUNTIF(D$2:D4,D4) -> 2 | B4: 12410010628 | C4: 张子怡 | D4: 241001管理岗（综合类） | E4: 69.79 | F4: 72.5 | H4: =SUM(E4:G4)/2 -> 71.15
A5: =COUNTIF(D$2:D5,D5) -> 3 | B5: 12410011716 | C5: 李霖 | D5: 241001管理岗（综合类） | E5: 65.92 | F5: 75.51 | H5: 70.72
A6: =COUNTIF(D$2:D6,D6) -> 4 | B6: 12410011519 | C6: 周存乾 | D6: 241001管理岗（综合类） | E6: 74.22 | F6: 65.45 | H6: 69.84
A7: =COUNTIF(D$2:D7,D7) -> 5 | B7: 12410011612 | C7: 王泱 | D7: 241001管理岗（综合类） | E7: 68.92 | F7: 70.55 | H7: 69.74
A8: =COUNTIF(D$2:D8,D8) -> 6 | B8: 12410011101 | C8: 范倩 | D8: 241001管理岗（综合类） | E8: 65.14 | F8: 72.41 | H8: 68.78
A9: =COUNTIF(D$2:D9,D9) -> 7 | B9: 12410010806 | C9: 李博文 | D9: 241001管理岗（综合类） | E9: 73.71 | F9: 63.02 | H9: 68.37
A10: =COUNTIF(D$2:D10,D10) -> 8 | B10: 12410011026 | C10: 牛路明 | D10: 241001管理岗（综合类） | E10: 68.7 | F10: 67.43 | H10: 68.07
A11: =COUNTIF(D$2:D11,D11) -> 9 | B11: 12410010911 | C11: 李家豪 | D11: 241001管理岗（综合类） | E11: 63.81 | F11: 71.7 | H11: 67.76
A12: =COUNTIF(D$2:D12,D12) -> 10 | B12: 12410010501 | C12: 秦宜昊 | D12: 241001管理岗（综合类） | E12: 66.34 | F12: 68.47 | H12: 67.41
A13: =COUNTIF(D$2:D13,D13) -> 11 | B13: 12410011401 | C13: 常书诚 | D13: 241001管理岗（综合类） | E13: 63.9 | F13: 70.52 | H13: 67.21
A14: =COUNTIF(D$2:D14,D14) -> 12 | B14: 12410010708 | C14: 冯化笛 | D14: 241001管理岗（综合类） | E14: 75.28 | F14: 59.13 | H14: 67.21
A15: =COUNTIF(D$2:D15,D15) -> 13 | B15: 12410011330 | C15: 侯欣怡 | D15: 241001管理岗（综合类） | E15: 60.45 | F15: 73.51 | H15: 66.98
A16: =COUNTIF(D$2:D16,D16) -> 14 | B16: 12410010307 | C16: 韩婧 | D16: 241001管理岗（综合类） | E16: 74.13 | F16: 59.76 | H16: 66.95
A17: =COUNTIF(D$2:D17,D17) -> 15 | B17: 12410011002 | C17: 曹洪祥 | D17: 241001管理岗（综合类） | E17: 68.68 | F17: 63.62 | H17: 66.15
A18: =COUNTIF(D$2:D18,D18) -> 16 | B18: 12410010919 | C18: 逯弘毅 | D18: 241001管理岗（综合类） | E18: 67.83 | F18: 64.36 | H18: 66.10
A19: =COUNTIF(D$2:D19,D19) -> 17 | B19: 12410011109 | C19: 孙镜轩 | D19: 241001管理岗（综合类） | E19: 68.51 | F19: 63.65 | H19: 66.08
A20: =COUNTIF(D$2:D20,D20) -> 18 | B20: 12410011128 | C20: 侯昱 | D20: 241001管理岗（综合类） | E20: 65.35 | F20: 66.63 | H20: 65.99
A21: =COUNTIF(D$2:D21,D21) -> 19 | B21: 12410011117 | C21: 郭俞静 | D21: 241001管理岗（综合类） | E21: 67.86 | F21: 64.08 | H21: 65.97
A22: =COUNTIF(D$2:D22,D22) -> 20 | B22: 12410010126 | C22: 郭昊斌 | D22: 241001管理岗（综合类） | E22: 69.57 | F22: 62.09 | H22: 65.83
A23: =COUNTIF(D$2:D23,D23) -> 21 | B23: 12410011713 | C23: 李邦震 | D23: 241001管理岗（综合类） | E23: 77.33 | F23: 53.95 | H23: 65.64
A24: =COUNTIF(D$2:D24,D24) -> 22 | B24: 12410010301 | C24: 李璐怡 | D24: 241001管理岗（综合类） | E24: 73.47 | F24: 56.77 | H24: 65.12
A25: =COUNTIF(D$2:D25,D25) -> 23 | B25: 12410011601 | C25: 张晋郡 | D25: 241001管理岗（综合类） | E25: 61.42 | F25: 68.47 | H25: 64.95
A26: =COUNTIF(D$2:D26,D26) -> 24 | B26: 12410011114 | C26: 甘钰山 | D26: 241001管理岗（综合类） | E26: 64.02 | F26: 65.51 | H26: 64.77
A27: =COUNTIF(D$2:D27,D27) -> 25 | B27: 12410010913 | C27: 程基原 | D27: 241001管理岗（综合类） | E27: 68.33 | F27: 60.74 | H27: 64.54
A28: =COUNTIF(D$2:D28,D28) -> 26 | B28: 12410010523 | C28: 张梦茜 | D28: 241001管理岗（综合类） | E28: 58.42 | F28: 69.84 | H28: 64.13
A29: =COUNTIF(D$2:D29,D29) -> 27 | B29: 12410010405 | C29: 安思旭 | D29: 241001管理岗（综合类） | E29: 54.46 | F29: 73.65 | H29: 64.06
A30: =COUNTIF(D$2:D30,D30) -> 28 | B30: 12410010122 | C30: 秦森 | D30: 241001管理岗（综合类） | E30: 61.72 | F30: 66.17 | H30: 63.95
A31: =COUNTIF(D$2:D31,D31) -> 29 | B31: 12410010409 | C31: 孙宁瑶 | D31: 241001管理岗（综合类） | E31: 69.07 | F31: 58.77 | H31: 63.92
A32: =COUNTIF(D$2:D32,D32) -> 30 | B32: 12410010305 | C32: 乔少飞 | D32: 241001管理岗（综合类） | E32: 58.87 | F32: 68.82 | H32: 63.85
A33: =COUNTIF(D$2:D33,D33) -> 31 | B33: 12410011705 | C33: 焦君君 | D33: 241001管理岗（综合类） | E33: 56.4 | F33: 71.23 | H33: 63.82
A34: =COUNTIF(D$2:D34,D34) -> 32 | B34: 12410010107 | C34: 刘伟龙 | D34: 241001管理岗（综合类） | E34: 63.53 | F34: 64.08 | H34: 63.81
A35: =COUNTIF(D$2:D35,D35) -> 33 | B35: 12410010511 | C35: 白天坤 | D35: 241001管理岗（综合类） | E35: 58.16 | F35: 69.45 | H35: 63.81
A36: =COUNTIF(D$2:D36,D36) -> 34 | B36: 12410010207 | C36: 宋志明 | D36: 241001管理岗（综合类） | E36: 53.65 | F36: 73.54 | H36: 63.60
A37: =COUNTIF(D$2:D37,D37) -> 35 | B37: 12410011119 | C37: 张渭佳 | D37: 241001管理岗（综合类） | E37: 57.44 | F37: 69.51 | H37: 63.48
A38: =COUNTIF(D$2:D38,D38) -> 36 | B38: 12410010212 | C38: 赵俊珊 | D38: 241001管理岗（综合类） | E38: 67.04 | F38: 59.68 | H38: 63.36
A39: =COUNTIF(D$2:D39,D39) -> 37 | B39: 12410011307 | C39: 王婉君 | D39: 241001管理岗（综合类） | E39: 71.07 | F39: 55.16 | H39: 63.12
A40: =COUNTIF(D$2:D40,D40) -> 38 | B40: 12410011124 | C40: 李伟龙 | D40: 241001管理岗（综合类） | E40: 57.14 | F40: 68.77 | H40: 62.96
A41: =COUNTIF(D$2:D41,D41) -> 39 | B41: 12410010525 | C41: 赵梦菲 | D41: 241001管理岗（综合类） | E41: 65.92 | F41: 59.29 | H41: 62.61
A42: =COUNTIF(D$2:D42,D42) -> 40 | B42: 12410010422 | C42: 刘薇 | D42: 241001管理岗（综合类） | E42: 55.86 | F42: 69.29 | H42: 62.58
A43: =COUNTIF(D$2:D43,D43) -> 41 | B43: 12410010918 | C43: 徐赛娟 | D43: 241001管理岗（综合类） | E43: 57.45 | F43: 67.62 | H43: 62.54
A44: =COUNTIF(D$2:D44,D44) -> 42 | B44: 12410011424 | C44: 陈艳阳 | D44: 241001管理岗（综合类） | E44: 62.54 | F44: 62.2 | H44: 62.37
A45: =COUNTIF(D$2:D45,D45) -> 43 | B45: 12410011711 | C45: 裴瑞奇 | D45: 241001管理岗（综合类） | E45: 56.6 | F45: 67.7 | H45: 62.15
A46: =COUNTIF(D$2:D46,D46) -> 44 | B46: 12410010310 | C46: 王心毅 | D46: 241001管理岗（综合类） | E46: 54.63 | F46: 69.43 | H46: 62.03
A47: =COUNTIF(D$2:D47,D47) -> 45 | B47: 12410011314 | C47: 王宇杰 | D47: 241001管理岗（综合类） | E47: 64.58 | F47: 59.4 | H47: 61.99
A48: =COUNTIF(D$2:D48,D48) -> 46 | B48: 12410011610 | C48: 李亚 | D48: 241001管理岗（综合类） | E48: 70.83 | F48: 52.55 | H48: 61.69
A49: =COUNTIF(D$2:D49,D49) -> 47 | B49: 12410010620 | C49: 李成健 | D49: 241001管理岗（综合类） | E49: 55.69 | F49: 67.59 | H49: 61.64
A50: =COUNTIF(D$2:D50,D50) -> 48 | B50: 12410010319 | C50: 李德鑫 | D50: 241001管理岗（综合类） | E50: 67.04 | F50: 55.92 | H50: 61.48
A51: =COUNTIF(D$2:D51,D51) -> 49 | B51: 12410010609 | C51: 郭芊岑 | D51: 241001管理岗（综合类） | E51: 47.31 | F51: 75.35 | H51: 61.33
A52: =COUNTIF(D$2:D52,D52) -> 50 | B52: 12410010221 | C52: 张济涛 | D52: 241001管理岗（综合类） | E52: 58.74 | F52: 63.78 | H52: 61.26
A53: =COUNTIF(D$2:D53,D53) -> 51 | B53: 12410011707 | C53: 张默彤 | D53: 241001管理岗（综合类） | E53: 60.7 | F53: 61.81 | H53: 61.26
A54: =COUNTIF(D$2:D54,D54) -> 52 | B54: 12410010116 | C54: 刘晓蕊 | D54: 241001管理岗（综合类） | E54: 62.31 | F54: 60.03 | H54: 61.17
A55: =COUNTIF(D$2:D55,D55) -> 53 | B55: 12410010815 | C55: 宋尚洋 | D55: 241001管理岗（综合类） | E55: 55.94 | F55: 66.17 | H55: 61.06
A56: =COUNTIF(D$2:D56,D56) -> 54 | B56: 12410011606 | C56: 刘轶群 | D56: 241001管理岗（综合类） | E56: 65.8 | F56: 56.2 | H56: 61.00
A57: =COUNTIF(D$2:D57,D57) -> 55 | B57: 12410010217 | C57: 范毛毛 | D57: 241001管理岗（综合类） | E57: 65.85 | F57: 56.14 | H57: 61.00
A58: =COUNTIF(D$2:D58,D58) -> 56 | B58: 12410011720 | C58: 邵中磊 | D58: 241001管理岗（综合类） | E58: 72.94 | F58: 48.99 | H58: 60.97
A59: =COUNTIF(D$2:D59,D59) -> 57 | B59: 12410011417 | C59: 陈怡如 | D59: 241001管理岗（综合类） | E59: 55.3 | F59: 66.36 | H59: 60.83
A60: =COUNTIF(D$2:D60,D60) -> 58 | B60: 12410010817 | C60: 赵倩颖 | D60: 241001管理岗（综合类） | E60: 52.77 | F60: 68.72 | H60: 60.75
A61: =COUNTIF(D$2:D61,D61) -> 59 | B61: 12410011320 | C61: 周雨辰 | D61: 241001管理岗（综合类） | E61: 62.71 | F61: 58.52 | H61: 60.62
A62: =COUNTIF(D$2:D62,D62) -> 60 | B62: 12410011028 | C62: 杨显赫 | D62: 241001管理岗（综合类） | E62: 66.24 | F62: 54.66 | H62: 60.45
A63: =COUNTIF(D$2:D63,D63) -> 61 | B63: 12410010410 | C63: 杨远志 | D63: 241001管理岗（综合类） | E63: 74.69 | F63: 46.2 | H63: 60.45
A64: =COUNTIF(D$2:D64,D64) -> 62 | B64: 12410010625 | C64: 牛润辉 | D64: 241001管理岗（综合类） | E64: 62.14 | F64: 58.72 | H64: 60.43
A65: =COUNTIF(D$2:D65,D65) -> 63 | B65: 12410010707 | C65: 景奕欣 | D65: 241001管理岗（综合类） | E65: 54.8 | F65: 65.92 | H65: 60.36
A66: =COUNTIF(D$2:D66,D66) -> 64 | B66: 12410010518 | C66: 娄婉怡 | D66: 241001管理岗（综合类） | E66: 62.58 | F66: 57.59 | H66: 60.09
A67: =COUNTIF(D$2:D67,D67) -> 65 | B67: 12410010916 | C67: 孙涵冰 | D67: 241001管理岗（综合类） | E67: 61.7 | F67: 58.47 | H67: 60.09
A68: =COUNTIF(D$2:D68,D68) -> 66 | B68: 12410011409 | C68: 张晨旭 | D68: 241001管理岗（综合类） | E68: 68.43 | F68: 51.51 | H68: =SUM(E68:G68)/2 -> 59.97
A69: =COUNTIF(D$2:D69,D69) -> 67 | B69: 12410010805 | C69: 赵哲 | D69: 241001管理岗（综合类） | E69: 60.86 | F69: 58.88 | H69: 59.87
A70: =COUNTIF(D$2:D70,D70) -> 68 | B70: 12410011412 | C70: 张天浩 | D70: 241001管理岗（综合类） | E70: 57.61 | F70: 62.06 | H70: 59.84
A71: =COUNTIF(D$2:D71,D71) -> 69 | B71: 12410011502 | C71: 王岳 | D71: 241001管理岗（综合类） | E71: 64.56 | F71: 54.88 | H71: 59.72
A72: =COUNTIF(D$2:D72,D72) -> 70 | B72: 12410010402 | C72: 赵钰 | D72: 241001管理岗（综合类） | E72: 48.02 | F72: 71.32 | H72: 59.67
A73: =COUNTIF(D$2:D73,D73) -> 71 | B73: 12410011013 | C73: 任飞翔 | D73: 241001管理岗（综合类） | E73: 57.71 | F73: 61.51 | H73: 59.61
A74: =COUNTIF(D$2:D74,D74) -> 72 | B74: 12410010210 | C74: 郑梦臣 | D74: 241001管理岗（综合类） | E74: 68.23 | F74: 50.8 | H74: 59.52
A75: =COUNTIF(D$2:D75,D75) -> 73 | B75: 12410010123 | C75: 李俊晖 | D75: 241001管理岗（综合类） | E75: 62.55 | F75: 56.33 | H75: 59.44
A76: =COUNTIF(D$2:D76,D76) -> 74 | B76: 12410011015 | C76: 卢明琪 | D76: 241001管理岗（综合类） | E76: 58.96 | F76: 59.87 | H76: 59.42
A77: =COUNTIF(D$2:D77,D77) -> 75 | B77: 12410010401 | C77: 翟源 | D77: 241001管理岗（综合类） | E77: 55.73 | F77: 63.07 | H77: 59.40
A78: =COUNTIF(D$2:D78,D78) -> 76 | B78: 12410010201 | C78: 张慧盟 | D78: 241001管理岗（综合类） | E78: 68.86 | F78: 49.68 | H78: 59.27
A79: =COUNTIF(D$2:D79,D79) -> 77 | B79: 12410010617 | C79: 刘磊 | D79: 241001管理岗（综合类） | E79: 63.76 | F79: 54.39 | H79: 59.08
A80: =COUNTIF(D$2:D80,D80) -> 78 | B80: 12410010925 | C80: 吴俊霖 | D80: 241001管理岗（综合类） | E80: 56.06 | F80: 61.92 | H80: 58.99
A81: =COUNTIF(D$2:D81,D81) -> 79 | B81: 12410011406 | C81: 邹晴 | D81: 241001管理岗（综合类） | E81: 66.27 | F81: 51.68 | H81: 58.98
A82: =COUNTIF(D$2:D82,D82) -> 80 | B82: 12410011407 | C82: 靳希恩 | D82: 241001管理岗（综合类） | E82: 57.95 | F82: 59.84 | H82: 58.90
A83: =COUNTIF(D$2:D83,D83) -> 81 | B83: 12410011304 | C83: 李冠一 | D83: 241001管理岗（综合类） | E83: 60.62 | F83: 56.91 | H83: 58.77
A84: =COUNTIF(D$2:D84,D84) -> 82 | B84: 12410011621 | C84: 张程宇 | D84: 241001管理岗（综合类） | E84: 66.97 | F84: 50.36 | H84: 58.67
A85: =COUNTIF(D$2:D85,D85) -> 83 | B85: 12410011010 | C85: 王瑾贤 | D85: 241001管理岗（综合类） | E85: 56.87 | F85: 60.44 | H85: 58.66
A86: =COUNTIF(D$2:D86,D86) -> 84 | B86: 12410011122 | C86: 李文齐 | D86: 241001管理岗（综合类） | E86: 53.85 | F86: 63.32 | H86: 58.59
A87: =COUNTIF(D$2:D87,D87) -> 85 | B87: 12410010204 | C87: 郑国航 | D87: 241001管理岗（综合类） | E87: 53.79 | F87: 63.37 | H87: 58.58
A88: =COUNTIF(D$2:D88,D88) -> 86 | B88: 12410010113 | C88: 杜子健 | D88: 241001管理岗（综合类） | E88: 68.12 | F88: 48.77 | H88: 58.45
A89: =COUNTIF(D$2:D89,D89) -> 87 | B89: 12410010704 | C89: 元文彬 | D89: 241001管理岗（综合类） | E89: 43.01 | F89: 73.81 | H89: 58.41
A90: =COUNTIF(D$2:D90,D90) -> 88 | B90: 12410011316 | C90: 王龙 | D90: 241001管理岗（综合类） | E90: 59.28 | F90: 57.43 | H90: 58.36
A91: =COUNTIF(D$2:D91,D91) -> 89 | B91: 12410011201 | C91: 朱颖 | D91: 241001管理岗（综合类） | E91: 65.32 | F91: 51.27 | H91: 58.30
A92: =COUNTIF(D$2:D92,D92) -> 90 | B92: 12410010712 | C92: 赵铭彦 | D92: 241001管理岗（综合类） | E92: 50.18 | F92: 66.22 | H92: 58.20
A93: =COUNTIF(D$2:D93,D93) -> 91 | B93: 12410010417 | C93: 王晨阳 | D93: 241001管理岗（综合类） | E93: 69.72 | F93: 46.34 | H93: 58.03
A94: =COUNTIF(D$2:D94,D94) -> 92 | B94: 12410011609 | C94: 李安 | D94: 241001管理岗（综合类） | E94: 62.89 | F94: 52.99 | H94: 57.94
A95: =COUNTIF(D$2:D95,D95) -> 93 | B95: 12410011115 | C95: 吕齐子慧 | D95: 241001管理岗（综合类） | E95: 60.49 | F95: 55.35 | H95: 57.92
A96: =COUNTIF(D$2:D96,D96) -> 94 | B96: 12410011321 | C96: 杨涵涵 | D96: 241001管理岗（综合类） | E96: 54.93 | F96: 60.66 | H96: 57.80
A97: =COUNTIF(D$2:D97,D97) -> 95 | B97: 12410010827 | C97: 闫庆炜 | D97: 241001管理岗（综合类） | E97: 57.1 | F97: 58.42 | H97: 57.76
A98: =COUNTIF(D$2:D98,D98) -> 96 | B98: 12410011024 | C98: 张溶芳 | D98: 241001管理岗（综合类） | E98: 58.44 | F98: 56.91 | H98: 57.68
A99: =COUNTIF(D$2:D99,D99) -> 97 | B99: 12410011507 | C99: 柴超凡 | D99: 241001管理岗（综合类） | E99: 60.22 | F99: 54.88 | H99: 57.55
A100: =COUNTIF(D$2:D100,D100) -> 98 | B100: 12410010430 | C100: 王文伟 | D100: 241001管理岗（综合类） | E100: 55.36 | F100: 59.73 | H100: 57.55
A101: =COUNTIF(D$2:D101,D101) -> 99 | B101: 12410010106 | C101: 孙世宇 | D101: 241001管理岗（综合类） | E101: 58.79 | F101: 56.14 | H101: 57.47
A102: =COUNTIF(D$2:D102,D102) -> 100 | B102: 12410010709 | C102: 孟昶铮 | D102: 241001管理岗（综合类） | E102: 50.87 | F102: 63.83 | H102: 57.35
A103: =COUNTIF(D$2:D103,D103) -> 101 | B103: 12410011014 | C103: 丁雨 | D103: 241001管理岗（综合类） | E103: 65.39 | F103: 49.15 | H103: 57.27
A104: =COUNTIF(D$2:D104,D104) -> 102 | B104: 12410011027 | C104: 王文祺 | D104: 241001管理岗（综合类） | E104: 49.82 | F104: 64.69 | H104: 57.26
A105: =COUNTIF(D$2:D105,D105) -> 103 | B105: 12410010514 | C105: 段佳佳 | D105: 241001管理岗（综合类） | E105: 54.64 | F105: 59.43 | H105: 57.04
A106: =COUNTIF(D$2:D106,D106) -> 104 | B106: 12410010909 | C106: 马世闯 | D106: 241001管理岗（综合类） | E106: 51.56 | F106: 62.25 | H106: 56.91
A107: =COUNTIF(D$2:D107,D107) -> 105 | B107: 12410011207 | C107: 张巍耀 | D107: 241001管理岗（综合类） | E107: 51.02 | F107: 62.69 | H107: 56.86
A108: =COUNTIF(D$2:D108,D108) -> 106 | B108: 12410011205 | C108: 单启婧 | D108: 241001管理岗（综合类） | E108: 52.05 | F108: 61.54 | H108: 56.80
A109: =COUNTIF(D$2:D109,D109) -> 107 | B109: 12410010520 | C109: 崔露杭 | D109: 241001管理岗（综合类） | E109: 59.66 | F109: 53.92 | H109: 56.79
A110: =COUNTIF(D$2:D110,D110) -> 108 | B110: 12410011313 | C110: 张薇 | D110: 241001管理岗（综合类） | E110: 54.82 | F110: 58.6 | H110: 56.71
A111: =COUNTIF(D$2:D111,D111) -> 109 | B111: 12410010623 | C111: 李瑞佳 | D111: 241001管理岗（综合类） | E111: 64.2 | F111: 49.13 | H111: 56.67
A112: =COUNTIF(D$2:D112,D112) -> 110 | B112: 12410011208 | C112: 樊晟两 | D112: 241001管理岗（综合类） | E112: 59.38 | F112: 53.92 | H112: 56.65
A113: =COUNTIF(D$2:D113,D113) -> 111 | B113: 12410010903 | C113: 碗舒翔 | D113: 241001管理岗（综合类） | E113: 65.21 | F113: 47.87 | H113: 56.54
A114: =COUNTIF(D$2:D114,D114) -> 112 | B114: 12410010814 | C114: 张铭 | D114: 241001管理岗（综合类） | E114: 63.05 | F114: 49.95 | H114: 56.50
A115: =COUNTIF(D$2:D115,D115) -> 113 | B115: 12410011607 | C115: 岳靓 | D115: 241001管理岗（综合类） | E115: 58.62 | F115: 54.36 | H115: 56.49
A116: =COUNTIF(D$2:D116,D116) -> 114 | B116: 12410010908 | C116: 侯碧璇 | D116: 241001管理岗（综合类） | E116: 56.78 | F116: 56.11 | H116: 56.45
A117: =COUNTIF(D$2:D117,D117) -> 115 | B117: 12410011625 | C117: 窦辰露 | D117: 241001管理岗（综合类） | E117: 58.96 | F117: 53.92 | H117: 56.44
A118: =COUNTIF(D$2:D118,D118) -> 116 | B118: 12410010921 | C118: 李娜 | D118: 241001管理岗（综合类） | E118: 58.2 | F118: 54.66 | H118: 56.43
A119: =COUNTIF(D$2:D119,D119) -> 117 | B119: 12410011302 | C119: 李航 | D119: 241001管理岗（综合类） | E119: 53.7 | F119: 59.13 | H119: 56.42
A120: =COUNTIF(D$2:D120,D120) -> 118 | B120: 12410011025 | C120: 许梦如 | D120: 241001管理岗（综合类） | E120: 63.8 | F120: 48.93 | H120: 56.37
A121: =COUNTIF(D$2:D121,D121) -> 119 | B121: 12410011523 | C121: 赵柯琦 | D121: 241001管理岗（综合类） | E121: 54.35 | F121: 58.31 | H121: 56.33
A122: =COUNTIF(D$2:D122,D122) -> 120 | B122: 12410010314 | C122: 张博 | D122: 241001管理岗（综合类） | E122: 58.77 | F122: 53.84 | H122: 56.31
A123: =COUNTIF(D$2:D123,D123) -> 121 | B123: 12410010807 | C123: 崔超越 | D123: 241001管理岗（综合类） | E123: 47.6 | F123: 64.91 | H123: 56.26
A124: =COUNTIF(D$2:D124,D124) -> 122 | B124: 12410010724 | C124: 倪宗原 | D124: 241001管理岗（综合类） | E124: 59.59 | F124: 52.58 | H124: 56.09
A125: =COUNTIF(D$2:D125,D125) -> 123 | B125: 12410011516 | C125: 段向雪 | D125: 241001管理岗（综合类） | E125: 60.26 | F125: 51.87 | H125: 56.07
A126: =COUNTIF(D$2:D126,D126) -> 124 | B126: 12410011203 | C126: 李铭岩 | D126: 241001管理岗（综合类） | E126: 65.23 | F126: 46.66 | H126: 55.95
A127: =COUNTIF(D$2:D127,D127) -> 125 | B127: 12410011118 | C127: 仝辉 | D127: 241001管理岗（综合类） | E127: 57.09 | F127: 54.72 | H127: 55.91
A128: =COUNTIF(D$2:D128,D128) -> 126 | B128: 12410011630 | C128: 朱晓琳 | D128: 241001管理岗（综合类） | E128: 47.65 | F128: 64.11 | H128: 55.88
A129: =COUNTIF(D$2:D129,D129) -> 127 | B129: 12410010320 | C129: 葛东宇 | D129: 241001管理岗（综合类） | E129: 49 | F129: 62.69 | H129: 55.85
A130: =COUNTIF(D$2:D130,D130) -> 128 | B130: 12410011318 | C130: 梁晗 | D130: 241001管理岗（综合类） | E130: 62.11 | F130: 49.43 | H130: 55.77
A131: =COUNTIF(D$2:D131,D131) -> 129 | B131: 12410011403 | C131: 郭晓彤 | D131: 241001管理岗（综合类） | E131: 61.4 | F131: 50 | H131: 55.70
A132: =COUNTIF(D$2:D132,D132) -> 130 | B132: 12410011718 | C132: 龚希茹 | D132: 241001管理岗（综合类） | E132: 61.15 | F132: 49.98 | H132: =SUM(E132:G132)/2 -> 55.57
A133: =COUNTIF(D$2:D133,D133) -> 131 | B133: 12410010425 | C133: 李静 | D133: 241001管理岗（综合类） | E133: 59.34 | F133: 51.24 | H133: 55.29
A134: =COUNTIF(D$2:D134,D134) -> 132 | B134: 12410011019 | C134: 于竣丰 | D134: 241001管理岗（综合类） | E134: 58.64 | F134: 51.81 | H134: 55.23
A135: =COUNTIF(D$2:D135,D135) -> 133 | B135: 12410010515 | C135: 李姣 | D135: 241001管理岗（综合类） | E135: 55.07 | F135: 55.29 | H135: 55.18
A136: =COUNTIF(D$2:D136,D136) -> 134 | B136: 12410010627 | C136: 郭义凡 | D136: 241001管理岗（综合类） | E136: 52.73 | F136: 57.32 | H136: 55.03
A137: =COUNTIF(D$2:D137,D137) -> 135 | B137: 12410011211 | C137: 尹越 | D137: 241001管理岗（综合类） | E137: 58.36 | F137: 51.67 | H137: 55.02
A138: =COUNTIF(D$2:D138,D138) -> 136 | B138: 12410010820 | C138: 丁帅华 | D138: 241001管理岗（综合类） | E138: 54.34 | F138: 55.67 | H138: 55.01
A139: =COUNTIF(D$2:D139,D139) -> 137 | B139: 12410011213 | C139: 刘幸坷 | D139: 241001管理岗（综合类） | E139: 56.68 | F139: 53.21 | H139: 54.95
A140: =COUNTIF(D$2:D140,D140) -> 138 | B140: 12410010224 | C140: 秦怡湘 | D140: 241001管理岗（综合类） | E140: 57.2 | F140: 52.66 | H140: 54.93
A141: =COUNTIF(D$2:D141,D141) -> 139 | B141: 12410011218 | C141: 李小溪 | D141: 241001管理岗（综合类） | E141: 49.12 | F141: 60.72 | H141: 54.92
A142: =COUNTIF(D$2:D142,D142) -> 140 | B142: 12410011510 | C142: 郭石羽 | D142: 241001管理岗（综合类） | E142: 48.99 | F142: 60.8 | H142: 54.90
A143: =COUNTIF(D$2:D143,D143) -> 141 | B143: 12410011224 | C143: 张荣 | D143: 241001管理岗（综合类） | E143: 56.2 | F143: 53.51 | H143: 54.86
A144: =COUNTIF(D$2:D144,D144) -> 142 | B144: 12410010215 | C144: 邵馨仪 | D144: 241001管理岗（综合类） | E144: 54.1 | F144: 55.51 | H144: 54.81
A145: =COUNTIF(D$2:D145,D145) -> 143 | B145: 12410011214 | C145: 徐梦洁 | D145: 241001管理岗（综合类） | E145: 49.01 | F145: 60.58 | H145: 54.80
A146: =COUNTIF(D$2:D146,D146) -> 144 | B146: 12410010716 | C146: 吕珂 | D146: 241001管理岗（综合类） | E146: 49.66 | F146: 59.84 | H146: 54.75
A147: =COUNTIF(D$2:D147,D147) -> 145 | B147: 12410010926 | C147: 袁志远 | D147: 241001管理岗（综合类） | E147: 52.37 | F147: 57.13 | H147: 54.75
A148: =COUNTIF(D$2:D148,D148) -> 146 | B148: 12410011020 | C148: 李文豪 | D148: 241001管理岗（综合类） | E148: 43.14 | F148: 66.28 | H148: 54.71
A149: =COUNTIF(D$2:D149,D149) -> 147 | B149: 12410011018 | C149: 王洁 | D149: 241001管理岗（综合类） | E149: 55.32 | F149: 54.06 | H149: 54.69
A150: =COUNTIF(D$2:D150,D150) -> 148 | B150: 12410010112 | C150: 邓俊耀 | D150: 241001管理岗（综合类） | E150: 63.86 | F150: 45.51 | H150: 54.69
A151: =COUNTIF(D$2:D151,D151) -> 149 | B151: 12410010811 | C151: 张耀月 | D151: 241001管理岗（综合类） | E151: 56.03 | F151: 53.32 | H151: 54.68
A152: =COUNTIF(D$2:D152,D152) -> 150 | B152: 12410011324 | C152: 魏源 | D152: 241001管理岗（综合类） | E152: 59.02 | F152: 50.25 | H152: 54.64
A153: =COUNTIF(D$2:D153,D153) -> 151 | B153: 12410011527 | C153: 于松 | D153: 241001管理岗（综合类） | E153: 64.19 | F153: 45.02 | H153: 54.61
A154: =COUNTIF(D$2:D154,D154) -> 152 | B154: 12410011311 | C154: 辛莘 | D154: 241001管理岗（综合类） | E154: 57.23 | F154: 51.92 | H154: 54.58
A155: =COUNTIF(D$2:D155,D155) -> 153 | B155: 12410010214 | C155: 张庭恺 | D155: 241001管理岗（综合类） | E155: 55.47 | F155: 53.65 | H155: 54.56
A156: =COUNTIF(D$2:D156,D156) -> 154 | B156: 12410010813 | C156: 赵文晖 | D156: 241001管理岗（综合类） | E156: 50.02 | F156: 59.1 | H156: 54.56
A157: =COUNTIF(D$2:D157,D157) -> 155 | B157: 12410010329 | C157: 王晨阳 | D157: 241001管理岗（综合类） | E157: 53.29 | F157: 55.81 | H157: 54.55
A158: =COUNTIF(D$2:D158,D158) -> 156 | B158: 12410010421 | C158: 卢昱希 | D158: 241001管理岗（综合类） | E158: 55.8 | F158: 53.07 | H158: 54.44
A159: =COUNTIF(D$2:D159,D159) -> 157 | B159: 12410011505 | C159: 张妍 | D159: 241001管理岗（综合类） | E159: 58.38 | F159: 50.41 | H159: 54.40
A160: =COUNTIF(D$2:D160,D160) -> 158 | B160: 12410010128 | C160: 唐世超 | D160: 241001管理岗（综合类） | E160: 56.61 | F160: 52.14 | H160: 54.38
A161: =COUNTIF(D$2:D161,D161) -> 159 | B161: 12410011322 | C161: 张利敏 | D161: 241001管理岗（综合类） | E161: 47.45 | F161: 61.15 | H161: 54.30
A162: =COUNTIF(D$2:D162,D162) -> 160 | B162: 12410010604 | C162: 郭良瑶 | D162: 241001管理岗（综合类） | E162: 60.2 | F162: 48.39 | H162: 54.30
A163: =COUNTIF(D$2:D163,D163) -> 161 | B163: 12410011315 | C163: 苏琪 | D163: 241001管理岗（综合类） | E163: 52.9 | F163: 55.35 | H163: 54.13
A164: =COUNTIF(D$2:D164,D164) -> 162 | B164: 12410010303 | C164: 赵雅雪 | D164: 241001管理岗（综合类） | E164: 64.25 | F164: 43.95 | H164: 54.10
A165: =COUNTIF(D$2:D165,D165) -> 163 | B165: 12410011111 | C165: 赵元元 | D165: 241001管理岗（综合类） | E165: 53.15 | F165: 54.93 | H165: 54.04
A166: =COUNTIF(D$2:D166,D166) -> 164 | B166: 12410011005 | C166: 李明洋 | D166: 241001管理岗（综合类） | E166: 58.39 | F166: 49.57 | H166: 53.98
A167: =COUNTIF(D$2:D167,D167) -> 165 | B167: 12410010612 | C167: 蔡丰遥 | D167: 241001管理岗（综合类） | E167: 50.06 | F167: 57.89 | H167: 53.98
A168: =COUNTIF(D$2:D168,D168) -> 166 | B168: 12410010327 | C168: 姜淼淼 | D168: 241001管理岗（综合类） | E168: 69.22 | F168: 38.58 | H168: 53.90
A169: =COUNTIF(D$2:D169,D169) -> 167 | B169: 12410010312 | C169: 王薇 | D169: 241001管理岗（综合类） | E169: 54.83 | F169: 52.8 | H169: 53.82
A170: =COUNTIF(D$2:D170,D170) -> 168 | B170: 12410011029 | C170: 高晓棵 | D170: 241001管理岗（综合类） | E170: 56.08 | F170: 51.24 | H170: 53.66
A171: =COUNTIF(D$2:D171,D171) -> 169 | B171: 12410011611 | C171: 杨扬 | D171: 241001管理岗（综合类） | E171: 51.99 | F171: 55.24 | H171: 53.62
A172: =COUNTIF(D$2:D172,D172) -> 170 | B172: 12410011614 | C172: 李孟颖 | D172: 241001管理岗（综合类） | E172: 54.12 | F172: 53.1 | H172: 53.61
A173: =COUNTIF(D$2:D173,D173) -> 171 | B173: 12410010406 | C173: 张澳一鸣 | D173: 241001管理岗（综合类） | E173: 57.89 | F173: 49.29 | H173: 53.59
A174: =COUNTIF(D$2:D174,D174) -> 172 | B174: 12410011116 | C174: 乔思雨 | D174: 241001管理岗（综合类） | E174: 54.72 | F174: 52.42 | H174: 53.57
A175: =COUNTIF(D$2:D175,D175) -> 173 | B175: 12410010326 | C175: 王雅轩 | D175: 241001管理岗（综合类） | E175: 53.66 | F175: 53.32 | H175: 53.49
A176: =COUNTIF(D$2:D176,D176) -> 174 | B176: 12410011319 | C176: 代金香 | D176: 241001管理岗（综合类） | E176: 56.57 | F176: 50.28 | H176: 53.43
A177: =COUNTIF(D$2:D177,D177) -> 175 | B177: 12410011604 | C177: 江璨然 | D177: 241001管理岗（综合类） | E177: 57.11 | F177: 49.51 | H177: 53.31
A178: =COUNTIF(D$2:D178,D178) -> 176 | B178: 12410010119 | C178: 李嘉惠 | D178: 241001管理岗（综合类） | E178: 55.42 | F178: 51.09 | H178: 53.26
A179: =COUNTIF(D$2:D179,D179) -> 177 | B179: 12410010109 | C179: 秦盼盼 | D179: 241001管理岗（综合类） | E179: 54.68 | F179: 51.81 | H179: 53.25
A180: =COUNTIF(D$2:D180,D180) -> 178 | B180: 12410011210 | C180: 罗明珠 | D180: 241001管理岗（综合类） | E180: 58.77 | F180: 47.59 | H180: 53.18
A181: =COUNTIF(D$2:D181,D181) -> 179 | B181: 12410011017 | C181: 孙悦 | D181: 241001管理岗（综合类） | E181: 53.57 | F181: 52.66 | H181: 53.12
A182: =COUNTIF(D$2:D182,D182) -> 180 | B182: 12410011221 | C182: 王坤 | D182: 241001管理岗（综合类） | E182: 41.45 | F182: 64.69 | H182: 53.07
A183: =COUNTIF(D$2:D183,D183) -> 181 | B183: 12410011125 | C183: 张依迪 | D183: 241001管理岗（综合类） | E183: 50.53 | F183: 55.4 | H183: 52.97
A184: =COUNTIF(D$2:D184,D184) -> 182 | B184: 12410010309 | C184: 祝小溪 | D184: 241001管理岗（综合类） | E184: 59.13 | F184: 46.77 | H184: 52.95
A185: =COUNTIF(D$2:D185,D185) -> 183 | B185: 12410011708 | C185: 徐阳 | D185: 241001管理岗（综合类） | E185: 55.32 | F185: 50.55 | H185: 52.94
A186: =COUNTIF(D$2:D186,D186) -> 184 | B186: 12410010713 | C186: 艾文慧 | D186: 241001管理岗（综合类） | E186: 42.75 | F186: 63.1 | H186: 52.93
A187: =COUNTIF(D$2:D187,D187) -> 185 | B187: 12410010808 | C187: 葛宇 | D187: 241001管理岗（综合类） | E187: 48.92 | F187: 56.91 | H187: 52.92
A188: =COUNTIF(D$2:D188,D188) -> 186 | B188: 12410011420 | C188: 赵慧超 | D188: 241001管理岗（综合类） | E188: 55.41 | F188: 50.36 | H188: 52.89
A189: =COUNTIF(D$2:D189,D189) -> 187 | B189: 12410010206 | C189: 张吉豪 | D189: 241001管理岗（综合类） | E189: 58.08 | F189: 47.62 | H189: 52.85
A190: =COUNTIF(D$2:D190,D190) -> 188 | B190: 12410010404 | C190: 苗佳欣 | D190: 241001管理岗（综合类） | E190: 60.26 | F190: 45.4 | H190: 52.83
A191: =COUNTIF(D$2:D191,D191) -> 189 | B191: 12410010413 | C191: 安麒 | D191: 241001管理岗（综合类） | E191: 63.48 | F191: 41.98 | H191: 52.73
A192: =COUNTIF(D$2:D192,D192) -> 190 | B192: 12410011405 | C192: 文瑾 | D192: 241001管理岗（综合类） | E192: 43.15 | F192: 62.31 | H192: 52.73
A193: =COUNTIF(D$2:D193,D193) -> 191 | B193: 12410010428 | C193: 李慧美 | D193: 241001管理岗（综合类） | E193: 48.57 | F193: 56.82 | H193: 52.70
A194: =COUNTIF(D$2:D194,D194) -> 192 | B194: 12410011615 | C194: 陈泉冰 | D194: 241001管理岗（综合类） | E194: 58.12 | F194: 47.18 | H194: 52.65
A195: =COUNTIF(D$2:D195,D195) -> 193 | B195: 12410010622 | C195: 杜明宇 | D195: 241001管理岗（综合类） | E195: 45.75 | F195: 59.46 | H195: 52.61
A196: =COUNTIF(D$2:D196,D196) -> 194 | B196: 12410010711 | C196: 惠杰 | D196: 241001管理岗（综合类） | E196: 50.14 | F196: 54.99 | H196: =SUM(E196:G196)/2 -> 52.57
A197: =COUNTIF(D$2:D197,D197) -> 195 | B197: 12410010721 | C197: 吕正晨 | D197: 241001管理岗（综合类） | E197: 59.77 | F197: 45.32 | H197: 52.55
A198: =COUNTIF(D$2:D198,D198) -> 196 | B198: 12410011325 | C198: 牛梦薇 | D198: 241001管理岗（综合类） | E198: 42.93 | F198: 62.09 | H198: 52.51
A199: =COUNTIF(D$2:D199,D199) -> 197 | B199: 12410011628 | C199: 安俊如 | D199: 241001管理岗（综合类） | E199: 50.87 | F199: 53.67 | H199: 52.27
A200: =COUNTIF(D$2:D200,D200) -> 198 | B200: 12410010104 | C200: 梁煜皓 | D200: 241001管理岗（综合类） | E200: 59.59 | F200: 44.88 | H200: 52.24
... 1305 more rows
